[Event "MČR juniorů a juniorek v rapid šachu 2024"]
[Site "Hotel Fit Fun, Harrachov, Czech Republic"]
[Date "2024.09.21"]
[Round "3.10"]
[White "Bezdek Tomas"]
[Black "Rybacek Martin"]
[Result "1/2-1/2"]
[TimeControl "20+5"]
[WhiteFideId "23733551"]
[BlackFideId "23739266"]
[WhiteElo "1973"]
[BlackElo "1831"]

1. Nf3 {[%clk 00:20:09]} {[%emt 00:18:37]} c5 {[%clk 00:20:09]} 2. g3 {[%clk
00:20:11]} {[%emt 00:00:03]} Nc6 {[%clk 00:20:12]} {[%emt 00:00:03]} 3. Bg2
{[%clk 00:20:15]} g6 {[%clk 00:20:16]} {[%emt 00:00:01]} 4. O-O {[%clk
00:20:17]} {[%emt 00:00:02]} Bg7 {[%clk 00:20:18]} {[%emt 00:00:03]} 5. c3
{[%clk 00:20:04]} {[%emt 00:00:18]} d5 {[%clk 00:20:06]} {[%emt 00:00:18]} 6.
d4 {[%clk 00:20:04]} {[%emt 00:00:04]} cxd4 {[%clk 00:20:07]} {[%emt 00:00:04]}
7. cxd4 {[%clk 00:20:08]} {[%emt 00:00:01]} Nf6 {[%clk 00:20:09]} {[%emt
00:00:04]} 8. Bf4 {[%clk 00:19:09]} {[%emt 00:01:03]} Qb6 {[%clk 00:19:55]}
{[%emt 00:00:20]} 9. Nc3 {[%clk 00:17:11]} {[%emt 00:02:03]} O-O {[%clk
00:17:16]} {[%emt 00:02:45]} 10. Na4 {[%clk 00:16:39]} {[%emt 00:00:36]} Qa5
{[%clk 00:16:35]} {[%emt 00:00:46]} 11. a3 {[%clk 00:14:45]} {[%emt 00:02:00]}
Ne4 {[%clk 00:15:50]} {[%emt 00:00:50]} 12. b4 {[%clk 00:14:23]} {[%emt
00:00:26]} Qd8 {[%clk 00:15:49]} {[%emt 00:00:05]} 13. Rc1 {[%clk 00:12:44]}
{[%emt 00:01:44]} Bg4 {[%clk 00:12:38]} {[%emt 00:03:16]} 14. b5 {[%clk
00:11:45]} {[%emt 00:01:04]} Nb8 {[%clk 00:11:55]} {[%emt 00:00:48]} 15. Ne5
{[%clk 00:11:42]} {[%emt 00:00:09]} Bf5 {[%clk 00:11:15]} {[%emt 00:00:45]} 16.
Qb3 {[%clk 00:10:30]} {[%emt 00:01:17]} g5 {[%clk 00:08:53]} {[%emt 00:02:27]}
17. Be3 {[%clk 00:09:39]} {[%emt 00:00:55]} h6 {[%clk 00:08:27]} {[%emt
00:00:31]} 18. f3 {[%clk 00:07:03]} {[%emt 00:02:41]} Nf6 {[%clk 00:07:46]}
{[%emt 00:00:47]} 19. Nc5 {[%clk 00:06:55]} {[%emt 00:00:13]} Qb6 {[%clk
00:06:52]} {[%emt 00:00:59]} 20. Bf2 {[%clk 00:06:49]} {[%emt 00:00:10]} Nbd7
{[%clk 00:06:18]} {[%emt 00:00:39]} 21. e4 {[%clk 00:06:11]} {[%emt 00:00:43]}
dxe4 {[%clk 00:05:47]} {[%emt 00:00:36]} 22. fxe4 {[%clk 00:06:12]} {[%emt
00:00:05]} Nxc5 {[%clk 00:05:31]} {[%emt 00:00:21]} 23. dxc5 {[%clk 00:05:55]}
{[%emt 00:00:21]} Qe6 {[%clk 00:05:21]} {[%emt 00:00:15]} 24. Qxe6 {[%clk
00:05:28]} {[%emt 00:00:32]} Bxe6 {[%clk 00:05:25]} 25. c6 {[%clk 00:05:05]}
{[%emt 00:00:29]} bxc6 {[%clk 00:04:59]} {[%emt 00:00:31]} 26. Nxc6 {[%clk
00:05:08]} {[%emt 00:00:01]} Ng4 {[%clk 00:04:06]} {[%emt 00:00:59]} 27. Bc5
{[%clk 00:04:35]} {[%emt 00:00:38]} Kh7 {[%clk 00:02:34]} {[%emt 00:01:37]} 28.
Bxe7 {[%clk 00:03:24]} {[%emt 00:01:15]} Rfc8 {[%clk 00:02:24]} {[%emt
00:00:16]} 29. h3 {[%clk 00:01:31]} {[%emt 00:01:57]} Ne3 {[%clk 00:02:20]}
{[%emt 00:00:09]} 30. Rfe1 {[%clk 00:01:14]} {[%emt 00:00:22]} Nxg2 {[%clk
00:02:08]} {[%emt 00:00:17]} 31. Kxg2 {[%clk 00:01:18]} {[%emt 00:00:01]} Rc7
{[%emt 00:00:35]} 32. a4 {[%clk 00:00:38]} {[%emt 00:00:43]} Rd7 {[%clk
00:01:07]} {[%emt 00:00:38]} 33. Red1 {[%clk 00:00:15]} {[%emt 00:00:28]} Re8
{[%clk 00:00:58]} {[%emt 00:00:15]} 34. Rxd7 {[%clk 00:00:16]} {[%emt
00:00:04]} Bxd7 {[%clk 00:01:02]} {[%emt 00:00:01]} 35. Bc5 {[%clk 00:00:13]}
{[%emt 00:00:08]} Rxe4 {[%clk 00:00:52]} {[%emt 00:00:15]} 36. Bxa7 {[%clk
00:00:12]} {[%emt 00:00:06]} Rxa4 {[%clk 00:00:55]} {[%emt 00:00:03]} 37. Bf2
{[%clk 00:00:14]} {[%emt 00:00:02]} Ra2 {[%clk 00:00:46]} {[%emt 00:00:14]} 38.
Rd1 {[%clk 00:00:08]} {[%emt 00:00:11]} Bxc6+ {[%clk 00:00:35]} {[%emt
00:00:16]} 39. bxc6 {[%clk 00:00:12]} Rc2 {[%clk 00:00:39]} 40. Rd7 {[%clk
00:00:13]} {[%emt 00:00:04]} Rxc6 {[%clk 00:00:41]} {[%emt 00:00:03]} 41. Rxf7
{[%clk 00:00:16]} {[%emt 00:00:01]} Kg6 {[%emt 00:00:02]} 1/2-1/2



[ePGN "0.1;DGT LiveChess/2.2.6"]

[Event "MČR juniorů a juniorek v rapid šachu 2024"]
[Site "Hotel Fit Fun, Harrachov, Czech Republic"]
[Date "2024.09.21"]
[Round "3.11"]
[White "Stocek Martin"]
[Black "Stastna Martina"]
[Result "1/2-1/2"]
[TimeControl "20+5"]
[WhiteFideId "380121"]
[BlackFideId "385123"]
[WhiteElo "2021"]
[BlackElo "1801"]

1. d4 {[%clk 00:20:09]} {[%emt 00:14:10]} d5 {[%clk 00:20:05]} {[%emt
00:00:05]} 2. c4 {[%clk 00:20:13]} {[%emt 00:00:02]} e6 {[%clk 00:20:07]}
{[%emt 00:00:02]} 3. Nc3 {[%clk 00:20:15]} {[%emt 00:00:03]} Nf6 {[%clk
00:20:11]} {[%emt 00:00:01]} 4. Nf3 {[%clk 00:20:19]} {[%emt 00:00:01]} Nbd7
{[%clk 00:19:54]} {[%emt 00:00:22]} 5. Bg5 {[%clk 00:19:30]} {[%emt 00:00:54]}
Be7 {[%clk 00:19:09]} {[%emt 00:00:50]} 6. e3 {[%clk 00:19:33]} {[%emt
00:00:01]} c6 {[%clk 00:18:56]} {[%emt 00:00:19]} 7. a3 {[%clk 00:18:23]}
{[%emt 00:01:16]} O-O {[%clk 00:18:17]} {[%emt 00:00:43]} 8. Bd3 {[%clk
00:18:27]} {[%emt 00:00:01]} dxc4 {[%clk 00:15:43]} {[%emt 00:02:39]} 9. Bxc4
{[%clk 00:18:30]} {[%emt 00:00:02]} Qc7 {[%clk 00:15:46]} {[%emt 00:00:01]} 10.
Bf4 {[%clk 00:17:41]} {[%emt 00:00:54]} Bd6 {[%clk 00:15:24]} {[%emt 00:00:28]}
11. Bxd6 {[%clk 00:17:44]} {[%emt 00:00:02]} Qxd6 {[%clk 00:15:27]} {[%emt
00:00:02]} 12. O-O {[%clk 00:17:40]} {[%emt 00:00:09]} a6 {[%clk 00:13:15]}
{[%emt 00:02:17]} 13. e4 {[%clk 00:16:27]} {[%emt 00:01:18]} Qc7 {[%clk
00:13:00]} {[%emt 00:00:20]} 14. Rc1 {[%clk 00:16:04]} {[%emt 00:00:28]} e5
{[%clk 00:11:47]} {[%emt 00:01:18]} 15. d5 {[%clk 00:15:31]} {[%emt 00:00:38]}
cxd5 {[%clk 00:10:41]} {[%emt 00:01:11]} 16. Nxd5 {[%clk 00:13:37]} {[%emt
00:01:59]} Qd8 {[%clk 00:09:56]} {[%emt 00:00:50]} 17. Re1 {[%clk 00:07:50]}
{[%emt 00:05:52]} b5 {[%clk 00:06:56]} {[%emt 00:03:05]} 18. Ba2 {[%clk
00:07:53]} {[%emt 00:00:02]} Bb7 {[%clk 00:06:55]} {[%emt 00:00:06]} 19. Nxf6+
{[%clk 00:02:27]} {[%emt 00:05:32]} Nxf6 {[%clk 00:06:58]} {[%emt 00:00:02]} 20.
Qxd8 {[%clk 00:01:00]} {[%emt 00:01:32]} Raxd8 {[%clk 00:07:01]} {[%emt
00:00:02]} 21. Nxe5 {[%clk 00:01:04]} Bxe4 {[%clk 00:06:51]} {[%emt 00:00:15]}
22. Rc7 {[%clk 00:00:26]} {[%emt 00:00:42]} Bd5 {[%clk 00:06:45]} {[%emt
00:00:11]} 23. Bxd5 {[%clk 00:00:28]} {[%emt 00:00:04]} Rxd5 {[%clk 00:06:49]}
{[%emt 00:00:01]} 24. Ra7 {[%clk 00:00:14]} {[%emt 00:00:19]} Rd6 {[%clk
00:06:03]} {[%emt 00:00:51]} 25. h3 {[%clk 00:00:16]} {[%emt 00:00:02]} h6
{[%clk 00:06:03]} {[%emt 00:00:06]} 26. Rc1 {[%clk 00:00:18]} {[%emt 00:00:03]}
Re6 {[%clk 00:05:42]} {[%emt 00:00:26]} 27. Nd3 {[%clk 00:00:22]} {[%emt
00:00:01]} Rd8 {[%clk 00:05:39]} {[%emt 00:00:08]} 28. Nc5 {[%clk 00:00:11]}
{[%emt 00:00:16]} Rc8 {[%clk 00:05:24]} {[%emt 00:00:20]} 29. b4 {[%clk
00:00:13]} {[%emt 00:00:04]} Ne4 {[%clk 00:05:13]} {[%emt 00:00:16]} 30. Rd1
{[%clk 00:00:10]} {[%emt 00:00:08]} Nxc5 {[%clk 00:05:14]} {[%emt 00:00:04]} 31.
bxc5 {[%clk 00:00:14]} Rxc5 {[%clk 00:05:15]} {[%emt 00:00:04]} 32. Rd8+ {[%clk
00:00:17]} {[%emt 00:00:01]} Kh7 {[%clk 00:05:19]} 33. Rxf7 {[%clk 00:00:21]}
{[%emt 00:00:01]} Rc3 {[%clk 00:05:18]} {[%emt 00:00:06]} 34. Rdd7 {[%clk
00:00:11]} {[%emt 00:00:15]} Rg6 {[%clk 00:05:21]} {[%emt 00:00:02]} 1/2-1/2



[ePGN "0.1;DGT LiveChess/2.2.6"]

[Event "MČR juniorů a juniorek v rapid šachu 2024"]
[Site "Hotel Fit Fun, Harrachov, Czech Republic"]
[Date "2024.09.21"]
[Round "3.12"]
[White "Jun Rudolf"]
[Black "Sknouril Jakub"]
[Result "1-0"]
[TimeControl "20+5"]
[WhiteFideId "376612"]
[BlackFideId "23731133"]
[WhiteElo "2142"]
[BlackElo "1806"]

1. e4 {[%clk 00:20:09]} {[%emt 00:03:27]} e5 {[%clk 00:20:02]} {[%emt
00:00:08]} 2. Nf3 {[%emt 00:00:03]} Nf6 3. Nc3 {[%clk 00:20:12]} {[%emt
00:00:03]} Bb4 {[%clk 00:20:11]} 4. d3 {[%clk 00:20:11]} {[%emt 00:00:05]} d5
{[%emt 00:00:01]} 5. exd5 Nxd5 6. Bd2 O-O 7. Nxd5 Bxd2+ {[%clk 00:20:15]} 8.
Nxd2 {[%clk 00:19:59]} Qxd5 {[%clk 00:19:45]} {[%emt 00:01:35]} 9. Qf3 {[%clk
00:19:36]} Be6 {[%emt 00:00:45]} 10. Qxd5 Bxd5 11. O-O-O Re8 {[%clk 00:19:20]}
12. Ne4 {[%clk 00:19:36]} Rf8 {[%clk 00:19:24]} 1-0



[ePGN "0.1;DGT LiveChess/2.2.6"]

[Event "MČR juniorů a juniorek v rapid šachu 2024"]
[Site "Hotel Fit Fun, Harrachov, Czech Republic"]
[Date "2024.09.21"]
[Round "3.13"]
[White "Juhanak Daniel"]
[Black "Stara Zuzana"]
[Result "1-0"]
[TimeControl "20+5"]
[WhiteFideId "23718765"]
[BlackFideId "23733543"]
[WhiteElo "1982"]
[BlackElo "1796"]

1. Nf3 {[%clk 00:20:09]} {[%emt 00:13:41]} d5 {[%clk 00:20:07]} {[%emt
00:00:02]} 2. c4 {[%clk 00:20:13]} e6 {[%clk 00:20:09]} {[%emt 00:00:04]} 3. g3
{[%clk 00:20:17]} Nf6 {[%clk 00:20:03]} {[%emt 00:00:11]} 4. Bg2 {[%clk
00:20:22]} c6 {[%clk 00:20:03]} {[%emt 00:00:05]} 5. d4 {[%clk 00:19:52]}
{[%emt 00:00:35]} Bd6 {[%clk 00:19:41]} {[%emt 00:00:27]} 6. O-O {[%clk
00:19:55]} {[%emt 00:00:02]} O-O {[%clk 00:19:41]} {[%emt 00:00:04]} 7. Nc3
{[%clk 00:19:59]} Nbd7 {[%clk 00:19:26]} {[%emt 00:00:21]} 8. Nd2 {[%clk
00:19:51]} {[%emt 00:00:12]} Bc7 {[%clk 00:19:02]} {[%emt 00:00:29]} 9. e4
{[%clk 00:19:51]} {[%emt 00:00:05]} dxe4 10. Ndxe4 {[%clk 00:19:55]} Nxe4
{[%clk 00:17:57]} {[%emt 00:00:31]} 11. Nxe4 {[%clk 00:19:59]} h6 {[%clk
00:16:55]} {[%emt 00:01:07]} 12. b3 {[%clk 00:18:48]} {[%emt 00:01:15]} f5
{[%clk 00:16:12]} {[%emt 00:00:49]} 13. Nc3 {[%clk 00:18:42]} {[%emt 00:00:12]}
Nf6 {[%clk 00:14:05]} {[%emt 00:02:12]} 14. Ba3 {[%clk 00:17:19]} {[%emt
00:01:28]} Re8 {[%clk 00:13:36]} {[%emt 00:00:33]} 15. Re1 {[%clk 00:16:11]}
{[%emt 00:01:14]} a6 {[%clk 00:12:59]} {[%emt 00:00:42]} 16. d5 {[%clk
00:13:58]} {[%emt 00:02:18]} cxd5 {[%clk 00:11:10]} {[%emt 00:01:54]} 17. cxd5
{[%clk 00:13:55]} {[%emt 00:00:08]} e5 {[%clk 00:10:24]} {[%emt 00:00:51]} 18.
d6 {[%clk 00:13:41]} {[%emt 00:00:19]} Bb6 {[%clk 00:10:02]} {[%emt 00:00:27]}
19. Nd5 {[%clk 00:12:39]} {[%emt 00:01:07]} Bd4 {[%clk 00:05:01]} {[%emt
00:05:06]} 20. Nxf6+ {[%clk 00:12:30]} {[%emt 00:00:14]} Qxf6 {[%clk 00:05:02]}
{[%emt 00:00:03]} 21. Qxd4 {[%clk 00:11:06]} {[%emt 00:01:29]} exd4 {[%clk
00:02:52]} {[%emt 00:02:16]} 22. Rxe8+ {[%clk 00:11:10]} Kh7 {[%clk 00:02:53]}
{[%emt 00:00:04]} 23. d7 {[%clk 00:08:26]} {[%emt 00:02:49]} Bxd7 {[%clk
00:02:57]} {[%emt 00:00:02]} 24. Rxa8 {[%clk 00:08:27]} {[%emt 00:00:04]} d3
{[%clk 00:02:59]} {[%emt 00:00:02]} 25. Rd1 {[%clk 00:07:24]} {[%emt 00:01:08]}
d2 {[%clk 00:03:03]} {[%emt 00:00:01]} 26. Bb4 {[%clk 00:05:51]} {[%emt
00:01:38]} Qb2 {[%clk 00:01:11]} {[%emt 00:01:56]} 27. Rd8 {[%clk 00:03:50]}
{[%emt 00:02:07]} Qc1 {[%clk 00:00:31]} {[%emt 00:00:45]} 28. Bf3 {[%clk
00:03:46]} {[%emt 00:00:09]} Bc6 {[%clk 00:00:29]} {[%emt 00:00:07]} 29. R8xd2
{[%clk 00:03:45]} {[%emt 00:00:06]} 1-0



[ePGN "0.1;DGT LiveChess/2.2.6"]

[Event "MČR juniorů a juniorek v rapid šachu 2024"]
[Site "Hotel Fit Fun, Harrachov, Czech Republic"]
[Date "2024.09.21"]
[Round "3.14"]
[White "Slaby Matej"]
[Black "Hrazdira Matyas Josef"]
[Result "1-0"]
[TimeControl "20+5"]
[WhiteFideId "23734876"]
[BlackFideId "23732954"]
[WhiteElo "1948"]
[BlackElo "1786"]

1. e4 {[%clk 00:20:07]} {[%emt 00:00:02]} e6 {[%clk 00:20:04]} {[%emt
00:00:07]} 2. d4 {[%clk 00:20:10]} {[%emt 00:00:02]} d5 {[%clk 00:20:07]}
{[%emt 00:00:01]} 3. e5 {[%clk 00:20:14]} {[%emt 00:00:02]} c5 {[%clk
00:20:11]} {[%emt 00:00:02]} 4. c3 {[%clk 00:20:18]} {[%emt 00:00:02]} Nc6
{[%clk 00:20:14]} {[%emt 00:00:01]} 5. Nf3 {[%clk 00:20:21]} {[%emt 00:00:01]}
Bd7 {[%clk 00:20:17]} {[%emt 00:00:03]} 6. a3 {[%clk 00:20:07]} {[%emt
00:00:19]} c4 {[%clk 00:19:40]} {[%emt 00:00:42]} 7. Be2 {[%clk 00:19:48]}
{[%emt 00:00:25]} Nge7 {[%clk 00:19:29]} {[%emt 00:00:15]} 8. Bf4 {[%clk
00:19:10]} {[%emt 00:00:42]} b5 {[%clk 00:18:39]} {[%emt 00:00:55]} 9. Nbd2
{[%clk 00:18:51]} {[%emt 00:00:24]} a5 {[%clk 00:16:52]} {[%emt 00:01:52]} 10.
Nf1 {[%clk 00:18:46]} {[%emt 00:00:10]} Ng6 {[%clk 00:16:21]} {[%emt 00:00:36]}
11. Bg5 {[%clk 00:18:45]} {[%emt 00:00:06]} Qb6 {[%clk 00:16:00]} {[%emt
00:00:26]} 12. h4 {[%clk 00:18:34]} {[%emt 00:00:15]} h6 {[%clk 00:15:55]}
{[%emt 00:00:11]} 13. Be3 {[%clk 00:16:37]} {[%emt 00:02:02]} Ra7 {[%clk
00:14:30]} {[%emt 00:01:30]} 14. h5 {[%clk 00:15:31]} {[%emt 00:01:10]} Nge7
{[%clk 00:14:32]} {[%emt 00:00:03]} 15. g4 {[%clk 00:15:34]} {[%emt 00:00:03]}
b4 {[%clk 00:13:03]} {[%emt 00:01:34]} 16. axb4 {[%clk 00:15:38]} {[%emt
00:00:02]} axb4 {[%clk 00:13:05]} {[%emt 00:00:03]} 17. Rxa7 {[%clk 00:14:51]}
{[%emt 00:00:51]} Qxa7 {[%clk 00:13:02]} {[%emt 00:00:08]} 18. N3d2 {[%clk
00:14:28]} {[%emt 00:00:28]} Nc8 {[%clk 00:11:34]} {[%emt 00:01:33]} 19. f4
{[%clk 00:13:10]} {[%emt 00:01:23]} Nb6 {[%clk 00:10:51]} {[%emt 00:00:49]} 20.
Qc1 {[%clk 00:12:28]} {[%emt 00:00:46]} Qa2 {[%clk 00:09:54]} {[%emt 00:01:03]}
21. Bd1 {[%clk 00:12:01]} {[%emt 00:00:31]} Na5 {[%clk 00:07:33]} {[%emt
00:02:26]} 22. Rh2 {[%clk 00:08:48]} {[%emt 00:03:17]} Ba4 {[%clk 00:02:34]}
{[%emt 00:05:04]} 23. b3 {[%clk 00:04:59]} {[%emt 00:03:54]} Qa3 {[%clk
00:02:26]} {[%emt 00:00:14]} 24. Qxa3 {[%clk 00:04:39]} {[%emt 00:00:24]} bxa3
{[%clk 00:02:29]} {[%emt 00:00:02]} 25. Nxc4 {[%clk 00:04:42]} {[%emt
00:00:02]} dxc4 {[%clk 00:00:50]} {[%emt 00:01:43]} 26. bxa4 {[%clk 00:04:45]}
{[%emt 00:00:03]} Nd5 {[%clk 00:00:48]} {[%emt 00:00:07]} 27. Rc2 {[%clk
00:04:08]} {[%emt 00:00:42]} Kd7 {[%clk 00:00:38]} {[%emt 00:00:15]} 28. Bd2
{[%clk 00:02:32]} {[%emt 00:01:41]} Be7 {[%clk 00:00:39]} {[%emt 00:00:04]} 29.
Ra2 {[%clk 00:02:34]} {[%emt 00:00:03]} Nb3 {[%clk 00:00:23]} {[%emt 00:00:21]}
30. Be2 {[%clk 00:01:59]} {[%emt 00:00:41]} Rc8 {[%clk 00:00:15]} {[%emt
00:00:13]} 31. Ne3 {[%clk 00:01:37]} {[%emt 00:00:26]} Nxf4 {[%clk 00:00:08]}
{[%emt 00:00:11]} 32. Bxc4 {[%clk 00:01:41]} {[%emt 00:00:02]} Nxd2 {[%clk
00:00:10]} {[%emt 00:00:04]} 33. Kxd2 {[%clk 00:01:42]} {[%emt 00:00:03]} Bg5
{[%clk 00:00:08]} {[%emt 00:00:07]} 34. Kc2 {[%clk 00:01:06]} {[%emt 00:00:41]}
Nh3 {[%clk 00:00:08]} {[%emt 00:00:06]} 35. Bb5+ {[%clk 00:01:09]} {[%emt
00:00:02]} Ke7 {[%clk 00:00:12]} 36. Nc4 {[%clk 00:01:13]} Nf4 {[%clk
00:00:15]} {[%emt 00:00:02]} 37. a5 {[%clk 00:01:12]} {[%emt 00:00:06]} Nd5
{[%clk 00:00:19]} {[%emt 00:00:01]} 38. a6 {[%clk 00:01:14]} {[%emt 00:00:03]}
Nc7 {[%clk 00:00:16]} {[%emt 00:00:08]} 39. Nxa3 {[%clk 00:00:56]} {[%emt
00:00:23]} Nxb5 {[%clk 00:00:07]} {[%emt 00:00:14]} 40. Nxb5 {[%clk 00:01:00]}
{[%emt 00:00:01]} Ra8 {[%clk 00:00:09]} {[%emt 00:00:04]} 41. a7 {[%clk
00:01:03]} {[%emt 00:00:02]} Kd7 {[%clk 00:00:13]} 42. Ra6 {[%clk 00:01:06]}
{[%emt 00:00:02]} Bd8 {[%clk 00:00:11]} {[%emt 00:00:07]} 43. Kd3 {[%clk
00:01:09]} {[%emt 00:00:02]} Kc8 {[%clk 00:00:14]} {[%emt 00:00:02]} 44. Nd6+
{[%clk 00:01:10]} {[%emt 00:00:04]} Kd7 {[%clk 00:00:17]} {[%emt 00:00:02]} 45.
Nxf7 {[%clk 00:01:13]} {[%emt 00:00:02]} Be7 {[%clk 00:00:18]} {[%emt
00:00:04]} 46. c4 {[%clk 00:01:09]} {[%emt 00:00:09]} Ke8 {[%clk 00:00:16]}
{[%emt 00:00:07]} 47. Nd6+ {[%clk 00:01:13]} Kd7 {[%clk 00:00:17]} {[%emt
00:00:04]} 48. d5 {[%clk 00:01:15]} {[%emt 00:00:03]} exd5 {[%clk 00:00:19]}
{[%emt 00:00:03]} 49. cxd5 {[%clk 00:01:19]} Kc7 {[%clk 00:00:20]} {[%emt
00:00:04]} 50. Rc6+ {[%clk 00:01:10]} {[%emt 00:00:14]} Kd7 {[%clk 00:00:22]}
{[%emt 00:00:03]} 51. e6+ {[%clk 00:01:12]} {[%emt 00:00:02]} Kd8 {[%clk
00:00:26]} {[%emt 00:00:03]} 52. Rc8+ {[%clk 00:01:16]} {[%emt 00:00:01]} Rxc8
{[%clk 00:00:29]} {[%emt 00:00:02]} 53. Nxc8 {[%clk 00:01:19]} {[%emt
00:00:01]} 1-0



[ePGN "0.1;DGT LiveChess/2.2.6"]

[Event "MČR juniorů a juniorek v rapid šachu 2024"]
[Site "Hotel Fit Fun, Harrachov, Czech Republic"]
[Date "2024.09.21"]
[Round "3.15"]
[White "Sulcova Tereza Radmila"]
[Black "Garabik Marek"]
[Result "1/2-1/2"]
[TimeControl "20+5"]
[WhiteFideId "395196"]
[BlackFideId "23717742"]
[WhiteElo "1800"]
[BlackElo "1933"]

1. e4 {[%clk 00:20:07]} e6 {[%clk 00:20:10]} {[%emt 00:00:01]} 2. b3 {[%clk
00:20:10]} {[%emt 00:00:02]} d5 {[%clk 00:20:04]} {[%emt 00:00:11]} 3. Bb2
{[%clk 00:20:13]} Nf6 {[%clk 00:19:47]} {[%emt 00:00:22]} 4. exd5 {[%clk
00:20:05]} {[%emt 00:00:14]} exd5 {[%clk 00:19:48]} {[%emt 00:00:04]} 5. Nf3
{[%clk 00:20:02]} {[%emt 00:00:08]} Bd6 {[%clk 00:19:11]} {[%emt 00:00:43]} 6.
Bd3 {[%clk 00:20:04]} {[%emt 00:00:03]} Qe7+ {[%clk 00:18:51]} {[%emt
00:00:25]} 7. Qe2 {[%clk 00:20:07]} {[%emt 00:00:01]} Qxe2+ {[%clk 00:18:54]}
{[%emt 00:00:02]} 8. Bxe2 {[%clk 00:20:11]} {[%emt 00:00:01]} Nbd7 {[%clk
00:18:45]} {[%emt 00:00:15]} 9. O-O {[%clk 00:20:12]} {[%emt 00:00:03]} O-O
{[%clk 00:18:48]} {[%emt 00:00:03]} 10. d4 {[%clk 00:18:44]} {[%emt 00:01:32]}
Re8 {[%clk 00:18:37]} {[%emt 00:00:16]} 11. Bd3 {[%clk 00:18:47]} {[%emt
00:00:01]} Nf8 {[%clk 00:17:56]} {[%emt 00:00:47]} 12. c4 {[%clk 00:18:18]}
{[%emt 00:00:34]} c6 {[%clk 00:17:33]} {[%emt 00:00:28]} 13. Nc3 {[%clk
00:18:16]} {[%emt 00:00:07]} Bg4 {[%clk 00:17:27]} {[%emt 00:00:11]} 14. Nh4
{[%clk 00:16:36]} {[%emt 00:01:44]} Bc7 {[%clk 00:15:03]} {[%emt 00:02:30]} 15.
cxd5 {[%clk 00:16:02]} {[%emt 00:00:39]} Nxd5 {[%clk 00:14:50]} {[%emt
00:00:18]} 16. Nxd5 {[%clk 00:16:05]} {[%emt 00:00:02]} cxd5 {[%clk 00:14:54]}
17. Rac1 {[%clk 00:15:51]} {[%emt 00:00:20]} Bb6 {[%clk 00:14:44]} {[%emt
00:00:15]} 18. Rfe1 {[%clk 00:15:15]} {[%emt 00:00:40]} a6 {[%clk 00:13:19]}
{[%emt 00:01:31]} 19. h3 {[%clk 00:15:11]} {[%emt 00:00:09]} Bh5 {[%clk
00:13:14]} {[%emt 00:00:10]} 20. g4 {[%clk 00:13:32]} {[%emt 00:01:44]} Bg6
{[%clk 00:13:18]} {[%emt 00:00:02]} 21. Bf5 {[%clk 00:13:35]} {[%emt 00:00:02]}
Bxf5 {[%clk 00:12:30]} {[%emt 00:00:53]} 22. Nxf5 {[%clk 00:13:37]} {[%emt
00:00:02]} Rxe1+ {[%clk 00:08:06]} {[%emt 00:04:29]} 23. Rxe1 {[%clk 00:13:40]}
{[%emt 00:00:02]} Ne6 {[%clk 00:07:49]} {[%emt 00:00:22]} 24. Ne7+ {[%clk
00:12:26]} {[%emt 00:01:19]} Kf8 {[%clk 00:07:53]} {[%emt 00:00:02]} 25. Nxd5
{[%clk 00:12:29]} {[%emt 00:00:02]} Bxd4 {[%clk 00:07:30]} {[%emt 00:00:28]}
1/2-1/2



[ePGN "0.1;DGT LiveChess/2.2.6"]